[Event "Early-Titled-Tuesday-Blitz-September-12-2023"]
[Site "Chess.com"]
[Date "2023.09.12"]
[Round "5"]
[White "NotFischer"]
[Black "Ducke13"]
[Result "0-1"]
[WhiteElo "2278"]
[BlackElo "2471"]
[TimeControl "180+1"]
[EndTime "8:56:14 PDT"]
[Termination "Ducke13 won by resignation"]

1. e4 {[%clk 0:03:00.9]} 1... c5 {[%clk 0:02:55.5]} 2. Nf3 {[%clk 0:02:59.4]}
2... d6 {[%clk 0:02:56]} 3. d4 {[%clk 0:02:59.4]} 3... cxd4 {[%clk 0:02:56.9]}
4. Nxd4 {[%clk 0:02:59.7]} 4... Nf6 {[%clk 0:02:57.5]} 5. Nc3 {[%clk 0:03:00.2]}
5... a6 {[%clk 0:02:58.2]} 6. Bc4 {[%clk 0:02:59.8]} 6... e6 {[%clk 0:02:57.5]}
7. Bb3 {[%clk 0:03:00]} 7... b5 {[%clk 0:02:57.9]} 8. O-O {[%clk 0:02:59.1]}
8... Bb7 {[%clk 0:02:58.4]} 9. Re1 {[%clk 0:02:45.7]} 9... Qd7 {[%clk
0:02:38.7]} 10. Qf3 {[%clk 0:02:26.3]} 10... Nc6 {[%clk 0:02:35]} 11. Nxc6
{[%clk 0:02:16.2]} 11... Bxc6 {[%clk 0:02:35.9]} 12. Bg5 {[%clk 0:02:16.3]}
12... Be7 {[%clk 0:02:35.1]} 13. Rad1 {[%clk 0:02:14.9]} 13... Qb7 {[%clk
0:02:25.9]} 14. Nd5 {[%clk 0:01:38.5]} 14... Bxd5 {[%clk 0:01:56.3]} 15. exd5
{[%clk 0:01:38.1]} 15... e5 {[%clk 0:01:53]} 16. c4 {[%clk 0:01:30.2]} 16... h6
{[%clk 0:01:50.4]} 17. Be3 {[%clk 0:01:19.3]} 17... Nd7 {[%clk 0:01:43.8]} 18.
Qg4 {[%clk 0:01:11.6]} 18... g6 {[%clk 0:01:24]} 19. f4 {[%clk 0:01:01.6]} 19...
h5 {[%clk 0:01:18.6]} 20. Qf3 {[%clk 0:00:54.4]} 20... Rc8 {[%clk 0:01:17.1]}
21. cxb5 {[%clk 0:00:29.4]} 21... axb5 {[%clk 0:01:18]} 22. fxe5 {[%clk
0:00:26.9]} 22... Nxe5 {[%clk 0:01:18.9]} 23. Qe4 {[%clk 0:00:27.1]} 23... O-O
{[%clk 0:01:13.8]} 24. Bd4 {[%clk 0:00:27]} 24... Bf6 {[%clk 0:01:12.7]} 25. Rf1
{[%clk 0:00:25.7]} 25... Bg7 {[%clk 0:01:09.8]} 26. Bxe5 {[%clk 0:00:20.5]}
26... Bxe5 {[%clk 0:01:08.2]} 27. Qb4 {[%clk 0:00:20.5]} 27... Qb6+ {[%clk
0:00:52]} 28. Kh1 {[%clk 0:00:20.2]} 28... Bxb2 {[%clk 0:00:39.5]} 29. a4 {[%clk
0:00:18.9]} 29... Rc5 {[%clk 0:00:29.5]} 30. a5 {[%clk 0:00:17.2]} 30... Qa7
{[%clk 0:00:24.3]} 31. Rd2 {[%clk 0:00:16.2]} 31... Bc3 {[%clk 0:00:24.2]} 32.
Qf4 {[%clk 0:00:14.6]} 32... Bxd2 {[%clk 0:00:23]} 33. Qxd2 {[%clk 0:00:15.5]}
33... b4 {[%clk 0:00:19.3]} 34. Bc2 {[%clk 0:00:14.6]} 34... b3 {[%clk
0:00:15.6]} 35. Bb1 {[%clk 0:00:14.5]} 35... Qxa5 {[%clk 0:00:14]} 36. Qh6
{[%clk 0:00:11.3]} 36... Qb5 {[%clk 0:00:08.4]} 37. Re1 {[%clk 0:00:05.4]} 37...
Rc2 {[%clk 0:00:07.4]} 38. Bxc2 {[%clk 0:00:03]} 38... bxc2 {[%clk 0:00:08.3]}
39. Rc1 {[%clk 0:00:03.2]} 39... Rc8 {[%clk 0:00:08.3]} 40. Qe3 {[%clk
0:00:03.5]} 40... Qb1 {[%clk 0:00:05]} 41. Qd2 {[%clk 0:00:03.3]} 41... Kg7
{[%clk 0:00:04.2]} 42. Kg1 {[%clk 0:00:03.9]} 42... f6 {[%clk 0:00:04.1]} 43.
Kf1 {[%clk 0:00:04.5]} 43... Rc5 {[%clk 0:00:03.9]} 44. Ke1 {[%clk 0:00:05.1]}
44... Qb3 {[%clk 0:00:04.2]} 45. Kf1 {[%clk 0:00:04.8]} 45... Qc4+ {[%clk
0:00:04.6]} 46. Ke1 {[%clk 0:00:05]} 46... Qe4+ {[%clk 0:00:04.2]} 47. Kf1
{[%clk 0:00:05.1]} 47... Qf5+ {[%clk 0:00:04.4]} 48. Ke1 {[%clk 0:00:05.5]}
48... Rxd5 {[%clk 0:00:03.6]} 49. Qxc2 {[%clk 0:00:05.8]} 49... Re5+ {[%clk
0:00:04.2]} 50. Kd1 {[%clk 0:00:05.9]} 50... Rd5+ {[%clk 0:00:04.1]} 51. Ke1
{[%clk 0:00:06.4]} 51... Re5+ {[%clk 0:00:04.6]} 52. Kd1 {[%clk 0:00:06.9]}
52... Qg4+ {[%clk 0:00:04.9]} 53. Kd2 {[%clk 0:00:05.2]} 53... Re2+ {[%clk
0:00:05.2]} 54. Kd3 {[%clk 0:00:05.8]} 54... Qe4+ {[%clk 0:00:04.5]} 55. Kc3
{[%clk 0:00:05.9]} 55... Rxc2+ {[%clk 0:00:04.1]} 56. Rxc2 {[%clk 0:00:06.8]}
56... d5 {[%clk 0:00:04.4]} 57. Rd2 {[%clk 0:00:07.4]} 57... Qe5+ {[%clk
0:00:04.3]} 58. Rd4 {[%clk 0:00:08.3]} 58... f5 {[%clk 0:00:04.3]} 59. Kd3
{[%clk 0:00:09.2]} 59... Kf6 {[%clk 0:00:04.6]} 60. g3 {[%clk 0:00:09.8]} 60...
g5 {[%clk 0:00:04.9]} 61. Kc3 {[%clk 0:00:09.6]} 61... f4 {[%clk 0:00:04.8]} 62.
gxf4 {[%clk 0:00:08.8]} 62... gxf4 {[%clk 0:00:05.7]} 63. Kd3 {[%clk 0:00:09]}
63... Kf5 {[%clk 0:00:06.2]} 64. Ra4 {[%clk 0:00:09.3]} 64... Qe3+ {[%clk
0:00:06.3]} 65. Kc2 {[%clk 0:00:09.1]} 65... Qc5+ {[%clk 0:00:06.5]} 66. Kb3
{[%clk 0:00:09.3]} 66... Qb5+ {[%clk 0:00:06.8]} 67. Rb4 {[%clk 0:00:09.1]}
67... Qxb4+ {[%clk 0:00:07.2]} 68. Kxb4 {[%clk 0:00:10]} 68... f3 {[%clk
0:00:07.9]} 69. Kc3 {[%clk 0:00:10.6]} 69... f2 {[%clk 0:00:08.5]} 70. Kd4
{[%clk 0:00:11.4]} 70... f1=Q {[%clk 0:00:09]} 71. Kxd5 {[%clk 0:00:12.3]} 71...
Qf3+ {[%clk 0:00:09.4]} 0-1

[Event "Early-Titled-Tuesday-Blitz-September-12-2023"]
[Site "Chess.com"]
[Date "2023.09.12"]
[Round "5"]
[White "FairChess_on_YouTube"]
[Black "PLAYER_2006_M"]
[Result "1/2-1/2"]
[WhiteElo "3041"]
[BlackElo "2881"]
[TimeControl "180+1"]
[EndTime "8:56:16 PDT"]
[Termination "Game drawn by repetition"]

1. d4 {[%clk 0:03:00.9]} 1... Nf6 {[%clk 0:03:00.3]} 2. c4 {[%clk 0:03:00.9]}
2... g6 {[%clk 0:03:00.7]} 3. Nc3 {[%clk 0:02:59.6]} 3... d5 {[%clk 0:03:01.1]}
4. cxd5 {[%clk 0:02:56]} 4... Nxd5 {[%clk 0:03:02]} 5. e4 {[%clk 0:02:52.9]}
5... Nxc3 {[%clk 0:03:02.1]} 6. bxc3 {[%clk 0:02:53.8]} 6... Bg7 {[%clk
0:03:02.7]} 7. Nf3 {[%clk 0:02:48.3]} 7... c5 {[%clk 0:03:02.6]} 8. Bb5+ {[%clk
0:02:48.7]} 8... Nc6 {[%clk 0:02:58.5]} 9. O-O {[%clk 0:02:47]} 9... O-O {[%clk
0:02:35.1]} 10. Bxc6 {[%clk 0:02:46.8]} 10... bxc6 {[%clk 0:02:35]} 11. Qc2
{[%clk 0:02:45.2]} 11... cxd4 {[%clk 0:02:35.5]} 12. cxd4 {[%clk 0:02:45.8]}
12... Bg4 {[%clk 0:02:35.9]} 13. Ne5 {[%clk 0:02:44.8]} 13... Qxd4 {[%clk
0:02:36]} 14. Bb2 {[%clk 0:02:44.7]} 14... Qb4 {[%clk 0:02:35.9]} 15. Rab1
{[%clk 0:02:40.4]} 15... Bxe5 {[%clk 0:02:32.7]} 16. Bxe5 {[%clk 0:02:40.5]}
16... Qa5 {[%clk 0:02:33]} 17. Bc3 {[%clk 0:02:31]} 17... Qc5 {[%clk 0:02:32.5]}
18. Qb2 {[%clk 0:02:28.2]} 18... Qd6 {[%clk 0:02:31.6]} 19. Be5 {[%clk
0:02:16.9]} 19... Qd3 {[%clk 0:02:05.7]} 20. f3 {[%clk 0:02:03]} 20... Be6
{[%clk 0:02:04.6]} 21. Rfd1 {[%clk 0:01:52.7]} 21... Qb5 {[%clk 0:02:00.5]} 22.
Qc3 {[%clk 0:01:25.8]} 22... Qc4 {[%clk 0:02:00.5]} 23. Qa3 {[%clk 0:01:17.1]}
23... f6 {[%clk 0:01:52.8]} 24. Bg3 {[%clk 0:01:06.3]} 24... Rfe8 {[%clk
0:01:48.7]} 25. Rd2 {[%clk 0:01:02]} 25... a5 {[%clk 0:01:32.1]} 26. h4 {[%clk
0:01:00.4]} 26... h5 {[%clk 0:01:29.2]} 27. Kh2 {[%clk 0:01:00.5]} 27... Kf7
{[%clk 0:01:29]} 28. Rb7 {[%clk 0:00:57]} 28... c5 {[%clk 0:01:20.9]} 29. Qe3
{[%clk 0:00:55.5]} 29... Qa6 {[%clk 0:00:41.6]} 30. Rc7 {[%clk 0:00:44.8]} 30...
Rad8 {[%clk 0:00:28]} 31. Rxd8 {[%clk 0:00:31.8]} 31... Rxd8 {[%clk 0:00:28.9]}
32. Qxc5 {[%clk 0:00:32.3]} 32... Rd7 {[%clk 0:00:24.4]} 33. Rxd7 {[%clk
0:00:20.3]} 33... Bxd7 {[%clk 0:00:24.6]} 34. e5 {[%clk 0:00:19.4]} 34... Qb5
{[%clk 0:00:17.2]} 35. Qc7 {[%clk 0:00:19.6]} 35... a4 {[%clk 0:00:15.1]} 36. a3
{[%clk 0:00:18.3]} 36... Qc6 {[%clk 0:00:14.3]} 37. Qa7 {[%clk 0:00:17.4]} 37...
g5 {[%clk 0:00:11.9]} 38. exf6 {[%clk 0:00:16.8]} 38... exf6 {[%clk 0:00:12.1]}
39. hxg5 {[%clk 0:00:16.4]} 39... fxg5 {[%clk 0:00:13]} 40. Qe3 {[%clk
0:00:16.7]} 40... Kg6 {[%clk 0:00:13.5]} 41. Qd3+ {[%clk 0:00:15.7]} 41... Bf5
{[%clk 0:00:13.4]} 42. Qd8 {[%clk 0:00:15.8]} 42... Qe6 {[%clk 0:00:11.4]} 43.
Qh8 {[%clk 0:00:13.7]} 43... h4 {[%clk 0:00:10.6]} 44. Be5 {[%clk 0:00:14]}
44... Qe7 {[%clk 0:00:07.4]} 45. Bd4 {[%clk 0:00:12.3]} 45... Qd6+ {[%clk
0:00:05.8]} 46. Be5 {[%clk 0:00:11.8]} 46... Qe7 {[%clk 0:00:06.3]} 47. Bd4
{[%clk 0:00:12.4]} 47... Qd6+ {[%clk 0:00:06.5]} 48. Kg1 {[%clk 0:00:13]} 48...
Qe7 {[%clk 0:00:04.8]} 49. Qg8+ {[%clk 0:00:13.2]} 49... Kh6 {[%clk 0:00:05.3]}
50. Qb8 {[%clk 0:00:06.5]} 50... Qe1+ {[%clk 0:00:05.1]} 51. Kh2 {[%clk
0:00:06.8]} 51... Qe7 {[%clk 0:00:03.8]} 52. Qh8+ {[%clk 0:00:06.6]} 52... Kg6
{[%clk 0:00:03.9]} 53. Qg8+ {[%clk 0:00:07.2]} 53... Kh6 {[%clk 0:00:04.5]} 54.
Qd5 {[%clk 0:00:07.6]} 54... Qe6 {[%clk 0:00:04]} 55. Qd8 {[%clk 0:00:06.9]}
55... Kg6 {[%clk 0:00:03.1]} 56. Qh8 {[%clk 0:00:04.4]} 56... Qd6+ {[%clk
0:00:03.1]} 1/2-1/2

[Event "Early-Titled-Tuesday-Blitz-September-12-2023"]
[Site "Chess.com"]
[Date "2023.09.12"]
[Round "5"]
[White "lachesisQ"]
[Black "Sanan_Sjugirov"]
[Result "1-0"]
[WhiteElo "3080"]
[BlackElo "2914"]
[TimeControl "180+1"]
[EndTime "8:56:17 PDT"]
[Termination "lachesisQ won on time"]

1. d4 {[%clk 0:03:00.9]} 1... Nf6 {[%clk 0:03:00.1]} 2. c4 {[%clk 0:03:01.4]}
2... e6 {[%clk 0:03:00.4]} 3. Nf3 {[%clk 0:03:02]} 3... d5 {[%clk 0:02:58.8]} 4.
g3 {[%clk 0:03:02.5]} 4... Bb4+ {[%clk 0:02:55.3]} 5. Bd2 {[%clk 0:03:02.5]}
5... Be7 {[%clk 0:02:56]} 6. Bg2 {[%clk 0:03:02.7]} 6... O-O {[%clk 0:02:56.2]}
7. O-O {[%clk 0:03:03.1]} 7... c6 {[%clk 0:02:56.7]} 8. Qc2 {[%clk 0:03:03.3]}
8... Nbd7 {[%clk 0:02:53.7]} 9. Rd1 {[%clk 0:03:03.3]} 9... b6 {[%clk
0:02:52.8]} 10. b3 {[%clk 0:02:55.5]} 10... Bb7 {[%clk 0:02:24.8]} 11. Nc3
{[%clk 0:02:53.6]} 11... c5 {[%clk 0:02:22]} 12. cxd5 {[%clk 0:02:45]} 12...
exd5 {[%clk 0:02:21.5]} 13. Bg5 {[%clk 0:02:28.2]} 13... Rc8 {[%clk 0:02:16.1]}
14. dxc5 {[%clk 0:02:17.6]} 14... bxc5 {[%clk 0:01:44.9]} 15. e3 {[%clk
0:02:17]} 15... h6 {[%clk 0:01:37.9]} 16. Bxf6 {[%clk 0:02:15.8]} 16... Nxf6
{[%clk 0:01:25.1]} 17. Rac1 {[%clk 0:02:15.1]} 17... d4 {[%clk 0:01:08.7]} 18.
exd4 {[%clk 0:01:37]} 18... Bxf3 {[%clk 0:01:08.3]} 19. Bxf3 {[%clk 0:01:37.9]}
19... cxd4 {[%clk 0:01:08.5]} 20. Qe2 {[%clk 0:01:15.2]} 20... Ba3 {[%clk
0:00:54.1]} 21. Rc2 {[%clk 0:01:15.2]} 21... Re8 {[%clk 0:00:52.9]} 22. Ne4
{[%clk 0:01:15.3]} 22... Nxe4 {[%clk 0:00:34.3]} 23. Bxe4 {[%clk 0:01:14.7]}
23... Qf6 {[%clk 0:00:20.4]} 24. Rxc8 {[%clk 0:01:08.1]} 24... Rxc8 {[%clk
0:00:21.3]} 25. Kg2 {[%clk 0:01:07.5]} 25... g6 {[%clk 0:00:21.2]} 26. Qd3
{[%clk 0:00:58.4]} 26... Rd8 {[%clk 0:00:19.1]} 27. Rd2 {[%clk 0:00:57.3]} 27...
Bb4 {[%clk 0:00:17.5]} 28. Re2 {[%clk 0:00:50]} 28... Kg7 {[%clk 0:00:17.7]} 29.
Bf3 {[%clk 0:00:45.2]} 29... Rc8 {[%clk 0:00:15.3]} 30. Re4 {[%clk 0:00:44.8]}
30... Rc3 {[%clk 0:00:08.6]} 31. Qxd4 {[%clk 0:00:42.4]} 31... Qxd4 {[%clk
0:00:09]} 32. Rxd4 {[%clk 0:00:43.3]} 32... Bc5 {[%clk 0:00:09.5]} 33. Rd2
{[%clk 0:00:43.7]} 33... a5 {[%clk 0:00:09.1]} 34. Bd5 {[%clk 0:00:41.9]} 34...
Bb4 {[%clk 0:00:09.6]} 35. Rd4 {[%clk 0:00:27.8]} 35... Rc2 {[%clk 0:00:07.7]}
36. Rf4 {[%clk 0:00:27.9]} 36... f5 {[%clk 0:00:07.4]} 37. a4 {[%clk 0:00:28]}
37... Kf6 {[%clk 0:00:06.9]} 38. h4 {[%clk 0:00:21.1]} 38... Bc5 {[%clk
0:00:05.6]} 39. Bc4 {[%clk 0:00:20.3]} 39... g5 {[%clk 0:00:05]} 40. hxg5+
{[%clk 0:00:20.5]} 40... hxg5 {[%clk 0:00:05.9]} 41. Rf3 {[%clk 0:00:20.8]}
41... Rd2 {[%clk 0:00:05.2]} 42. Kf1 {[%clk 0:00:20.5]} 42... g4 {[%clk
0:00:04.3]} 43. Ke1 {[%clk 0:00:14.8]} 43... Bb4 {[%clk 0:00:03.1]} 44. Re3
{[%clk 0:00:15]} 44... Rb2+ {[%clk 0:00:02.2]} 45. Kf1 {[%clk 0:00:15]} 45...
Bc5 {[%clk 0:00:02.8]} 46. Re6+ {[%clk 0:00:15.4]} 46... Kg5 {[%clk 0:00:03.4]}
47. Be2 {[%clk 0:00:14.8]} 47... Rb1+ {[%clk 0:00:03.6]} 48. Kg2 {[%clk
0:00:14.9]} 48... Rxb3 {[%clk 0:00:04.4]} 49. Re5 {[%clk 0:00:15.3]} 49... Bd4
{[%clk 0:00:04.4]} 50. Rxa5 {[%clk 0:00:14.8]} 50... Rb2 {[%clk 0:00:05]} 51.
Kf1 {[%clk 0:00:15]} 51... Rb1+ {[%clk 0:00:05.1]} 52. Kg2 {[%clk 0:00:15.6]}
52... Rb2 {[%clk 0:00:06]} 53. Rd5 {[%clk 0:00:16]} 53... Ba7 {[%clk 0:00:04.5]}
54. Kf1 {[%clk 0:00:16.3]} 54... Rb1+ {[%clk 0:00:04.6]} 55. Bd1 {[%clk
0:00:15.5]} 55... Rb2 {[%clk 0:00:04.7]} 56. Be2 {[%clk 0:00:14.3]} 56... Rb1+
{[%clk 0:00:05.2]} 57. Kg2 {[%clk 0:00:15]} 57... Rb2 {[%clk 0:00:05.7]} 58. Re5
{[%clk 0:00:15.6]} 58... Kf6 {[%clk 0:00:05.6]} 59. Re8 {[%clk 0:00:13.5]} 59...
Kf7 {[%clk 0:00:05.8]} 60. Ra8 {[%clk 0:00:13]} 60... Bd4 {[%clk 0:00:05.7]} 61.
Kf1 {[%clk 0:00:13]} 61... Rb1+ {[%clk 0:00:05.9]} 62. Kg2 {[%clk 0:00:13.5]}
62... Rb2 {[%clk 0:00:06.8]} 63. Rd8 {[%clk 0:00:13.3]} 63... Bc5 {[%clk
0:00:03.5]} 64. Rd5 {[%clk 0:00:12.1]} 64... Ba7 {[%clk 0:00:02.4]} 65. Rxf5+
{[%clk 0:00:12.1]} 65... Kg6 {[%clk 0:00:02.4]} 66. Bd3 {[%clk 0:00:12.3]} 66...
Ra2 {[%clk 0:00:03.3]} 67. Ra5+ {[%clk 0:00:11.5]} 67... Kf6 {[%clk 0:00:03.3]}
68. Ra6+ {[%clk 0:00:11.6]} 1-0

[Event "Early-Titled-Tuesday-Blitz-September-12-2023"]
[Site "Chess.com"]
[Date "2023.09.12"]
[Round "5"]
[White "Payyappat"]
[Black "tdf98pantani"]
[Result "0-1"]
[WhiteElo "2490"]
[BlackElo "2727"]
[TimeControl "180+1"]
[EndTime "8:56:17 PDT"]
[Termination "tdf98pantani won by resignation"]

1. e4 {[%clk 0:03:00.9]} 1... c5 {[%clk 0:02:54.3]} 2. Nf3 {[%clk 0:03:00.5]}
2... d6 {[%clk 0:02:54.8]} 3. d4 {[%clk 0:03:00.2]} 3... cxd4 {[%clk 0:02:55.2]}
4. Nxd4 {[%clk 0:03:00.7]} 4... Nf6 {[%clk 0:02:55.9]} 5. Nc3 {[%clk 0:03:00.2]}
5... a6 {[%clk 0:02:56.7]} 6. h4 {[%clk 0:02:56.8]} 6... b5 {[%clk 0:02:51.3]}
7. Bd3 {[%clk 0:02:43.2]} 7... Bb7 {[%clk 0:02:51]} 8. a3 {[%clk 0:02:38.1]}
8... Nbd7 {[%clk 0:02:50.4]} 9. f4 {[%clk 0:02:32.5]} 9... Nc5 {[%clk
0:02:49.1]} 10. Qe2 {[%clk 0:02:30.6]} 10... h5 {[%clk 0:02:43.7]} 11. Bd2
{[%clk 0:02:23.9]} 11... e5 {[%clk 0:02:37.6]} 12. Nf3 {[%clk 0:02:15.5]} 12...
Ng4 {[%clk 0:02:36.1]} 13. O-O-O {[%clk 0:02:08.3]} 13... Nxd3+ {[%clk
0:02:26.8]} 14. cxd3 {[%clk 0:02:06.8]} 14... Be7 {[%clk 0:02:22.1]} 15. Kb1
{[%clk 0:01:57.5]} 15... Qb6 {[%clk 0:02:13.2]} 16. Nd5 {[%clk 0:01:31.2]} 16...
Bxd5 {[%clk 0:02:12.4]} 17. exd5 {[%clk 0:01:32.1]} 17... Bf6 {[%clk 0:01:57]}
18. fxe5 {[%clk 0:01:12.7]} 18... dxe5 {[%clk 0:01:47.2]} 19. d4 {[%clk
0:00:59.3]} 19... e4 {[%clk 0:01:05.6]} 20. Qxe4+ {[%clk 0:00:51.9]} 20... Kf8
{[%clk 0:01:05.7]} 21. Ne5 {[%clk 0:00:33.1]} 21... Bxe5 {[%clk 0:00:48.6]} 22.
dxe5 {[%clk 0:00:18.7]} 22... Nf2 {[%clk 0:00:49]} 23. Be3 {[%clk 0:00:17.8]}
23... Nxe4 {[%clk 0:00:37.7]} 24. Bxb6 {[%clk 0:00:17.7]} 24... Rh6 {[%clk
0:00:36]} 25. Rhe1 {[%clk 0:00:17.1]} 25... Ng3 {[%clk 0:00:31.1]} 26. Bc5+
{[%clk 0:00:16.9]} 26... Ke8 {[%clk 0:00:31.6]} 27. d6 {[%clk 0:00:16]} 27...
Kd7 {[%clk 0:00:31.6]} 28. Bb4 {[%clk 0:00:15.8]} 28... Rc8 {[%clk 0:00:24.3]}
29. Rd3 {[%clk 0:00:15.5]} 29... Nf5 {[%clk 0:00:24]} 30. Rf3 {[%clk 0:00:15.4]}
30... Ke6 {[%clk 0:00:20.5]} 31. Ref1 {[%clk 0:00:14.6]} 31... g6 {[%clk
0:00:20.4]} 32. Rf4 {[%clk 0:00:14.2]} 32... Rhh8 {[%clk 0:00:19.8]} 33. Re1
{[%clk 0:00:13.4]} 33... Rhd8 {[%clk 0:00:19.1]} 34. g4 {[%clk 0:00:10.6]} 34...
hxg4 {[%clk 0:00:18.8]} 35. Rxg4 {[%clk 0:00:11.5]} 35... Rc4 {[%clk 0:00:19.2]}
36. Ree4 {[%clk 0:00:11.4]} 36... Rxe4 {[%clk 0:00:17.6]} 37. Rxe4 {[%clk
0:00:12.3]} 37... Rh8 {[%clk 0:00:17.5]} 38. Be1 {[%clk 0:00:12.8]} 38... Kd5
{[%clk 0:00:15.6]} 39. Re2 {[%clk 0:00:13]} 39... Re8 {[%clk 0:00:14.4]} 40. Ba5
{[%clk 0:00:07.1]} 40... Ke6 {[%clk 0:00:14.5]} 41. Be1 {[%clk 0:00:06.3]} 41...
Kd7 {[%clk 0:00:14.4]} 42. Bc3 {[%clk 0:00:06.5]} 42... Nxh4 {[%clk 0:00:13.4]}
43. Rh2 {[%clk 0:00:06.7]} 43... Nf5 {[%clk 0:00:13.3]} 44. Rh7 {[%clk
0:00:07.3]} 44... Ke6 {[%clk 0:00:13.9]} 45. d7 {[%clk 0:00:06.6]} 45... Rd8
{[%clk 0:00:13.9]} 46. Kc2 {[%clk 0:00:05.7]} 46... Rxd7 {[%clk 0:00:14.3]} 47.
Kb3 {[%clk 0:00:06.6]} 47... g5 {[%clk 0:00:14.7]} 48. Kb4 {[%clk 0:00:07]}
48... g4 {[%clk 0:00:15]} 49. Rh5 {[%clk 0:00:07.2]} 49... g3 {[%clk 0:00:14.7]}
50. Rg5 {[%clk 0:00:07.8]} 50... Rd3 {[%clk 0:00:13.9]} 51. Ka5 {[%clk
0:00:08.1]} 51... Rxc3 {[%clk 0:00:10.4]} 52. bxc3 {[%clk 0:00:08.4]} 52... Kxe5
{[%clk 0:00:11.2]} 53. Kxa6 {[%clk 0:00:08.5]} 53... Kf4 {[%clk 0:00:10.4]} 54.
Rg8 {[%clk 0:00:08.7]} 54... Nh6 {[%clk 0:00:09.7]} 55. Rg7 {[%clk 0:00:08.5]}
55... f5 {[%clk 0:00:08.9]} 56. Rd7 {[%clk 0:00:05.4]} 56... Ng4 {[%clk
0:00:09.1]} 57. Rd1 {[%clk 0:00:05.7]} 57... Ne3 {[%clk 0:00:05.6]} 58. Rb1
{[%clk 0:00:05.4]} 58... g2 {[%clk 0:00:05.9]} 59. Kxb5 {[%clk 0:00:05.6]} 59...
Nf1 {[%clk 0:00:04.9]} 60. Rb4+ {[%clk 0:00:06]} 60... Kf3 {[%clk 0:00:05.1]}
61. Rc4 {[%clk 0:00:05.5]} 61... g1=Q {[%clk 0:00:05.2]} 62. a4 {[%clk
0:00:06.4]} 62... Nd2 {[%clk 0:00:05.2]} 63. a5 {[%clk 0:00:07.3]} 63... Qf1
{[%clk 0:00:05.1]} 64. a6 {[%clk 0:00:07]} 64... Qxc4+ {[%clk 0:00:05.8]} 65.
Kb6 {[%clk 0:00:07.9]} 65... Nb3 {[%clk 0:00:06.1]} 66. a7 {[%clk 0:00:07.7]}
66... Qc5+ {[%clk 0:00:06.7]} 67. Kb7 {[%clk 0:00:08.6]} 67... Na5+ {[%clk
0:00:06.9]} 68. Ka6 {[%clk 0:00:08.5]} 68... Qc6+ {[%clk 0:00:06.9]} 69. Kxa5
{[%clk 0:00:08.4]} 69... Qb7 {[%clk 0:00:07.6]} 0-1

[Event "Early-Titled-Tuesday-Blitz-September-12-2023"]
[Site "Chess.com"]
[Date "2023.09.12"]
[Round "5"]
[White "benny_aizenberg"]
[Black "Zhigalko_Sergei"]
[Result "0-1"]
[WhiteElo "2623"]
[BlackElo "2886"]
[TimeControl "180+1"]
[EndTime "8:56:18 PDT"]
[Termination "Zhigalko_Sergei won by checkmate"]

1. c4 {[%clk 0:02:48.8]} 1... e5 {[%clk 0:03:00.1]} 2. Nc3 {[%clk 0:02:47.8]}
2... Nf6 {[%clk 0:03:00.6]} 3. g3 {[%clk 0:02:47.8]} 3... c6 {[%clk 0:03:00.8]}
4. Bg2 {[%clk 0:02:46.6]} 4... d5 {[%clk 0:03:01]} 5. cxd5 {[%clk 0:02:46.6]}
5... cxd5 {[%clk 0:03:01.9]} 6. d4 {[%clk 0:02:45.6]} 6... exd4 {[%clk
0:03:02.8]} 7. Qxd4 {[%clk 0:02:44.2]} 7... Nc6 {[%clk 0:03:03.5]} 8. Qd3 {[%clk
0:02:40.8]} 8... d4 {[%clk 0:02:31.7]} 9. Ne4 {[%clk 0:02:12]} 9... Bb4+ {[%clk
0:02:31.3]} 10. Bd2 {[%clk 0:02:09.7]} 10... O-O {[%clk 0:02:30.3]} 11. Nxf6+
{[%clk 0:02:03.7]} 11... Qxf6 {[%clk 0:02:28.9]} 12. Nf3 {[%clk 0:02:01.3]}
12... Bf5 {[%clk 0:02:20.6]} 13. Qb3 {[%clk 0:01:59.3]} 13... Be6 {[%clk
0:01:36.9]} 14. Qa4 {[%clk 0:01:47.5]} 14... Bxd2+ {[%clk 0:01:20.4]} 15. Nxd2
{[%clk 0:01:47]} 15... Rad8 {[%clk 0:01:20]} 16. O-O {[%clk 0:01:43.6]} 16...
Bd5 {[%clk 0:01:19.6]} 17. Bxd5 {[%clk 0:01:31.4]} 17... Rxd5 {[%clk 0:01:18.8]}
18. Qb3 {[%clk 0:01:29]} 18... Rd7 {[%clk 0:01:16.2]} 19. Rad1 {[%clk
0:01:21.5]} 19... Re8 {[%clk 0:01:16.1]} 20. Rfe1 {[%clk 0:01:19.8]} 20... Rde7
{[%clk 0:01:07.7]} 21. Kf1 {[%clk 0:01:13.9]} 21... Qf5 {[%clk 0:00:23]} 22. Nf3
{[%clk 0:01:03.6]} 22... h6 {[%clk 0:00:06.2]} 23. Nxd4 {[%clk 0:00:49.8]} 23...
Qe4 {[%clk 0:00:02.3]} 24. Nf3 {[%clk 0:00:44.4]} 24... Ne5 {[%clk 0:00:02.4]}
25. Kg2 {[%clk 0:00:09.7]} 25... a6 {[%clk 0:00:02.1]} 26. Qd5 {[%clk
0:00:03.7]} 26... Nxf3 {[%clk 0:00:02.4]} 27. exf3 {[%clk 0:00:02.7]} 27... Qxd5
{[%clk 0:00:02.9]} 28. Rxe7 {[%clk 0:00:02.7]} 28... Qxd1 {[%clk 0:00:03]} 29.
Rxe8+ {[%clk 0:00:03.3]} 29... Kh7 {[%clk 0:00:03.6]} 30. Re7 {[%clk 0:00:04]}
30... Qc2 {[%clk 0:00:03.3]} 31. Rxb7 {[%clk 0:00:03.9]} 31... f6 {[%clk
0:00:03.7]} 32. Rb6 {[%clk 0:00:04]} 32... Qc4 {[%clk 0:00:03.5]} 33. b3 {[%clk
0:00:03.8]} 33... Qd3 {[%clk 0:00:03.9]} 34. a4 {[%clk 0:00:03.5]} 34... h5
{[%clk 0:00:04.1]} 35. h4 {[%clk 0:00:03]} 35... Kg6 {[%clk 0:00:03.9]} 36. a5
{[%clk 0:00:02.3]} 36... Kf7 {[%clk 0:00:03.6]} 37. b4 {[%clk 0:00:02.3]} 37...
Kf8 {[%clk 0:00:03.4]} 38. Rb7 {[%clk 0:00:01.9]} 38... Qc4 {[%clk 0:00:03.2]}
39. Rb6 {[%clk 0:00:01.9]} 39... Kf7 {[%clk 0:00:03.3]} 40. Rb7+ {[%clk
0:00:02.3]} 40... Ke6 {[%clk 0:00:02.9]} 41. Rxg7 {[%clk 0:00:01.7]} 41... Qxb4
{[%clk 0:00:02.8]} 42. Rh7 {[%clk 0:00:01.6]} 42... Qxa5 {[%clk 0:00:03]} 43. g4
{[%clk 0:00:02]} 43... hxg4 {[%clk 0:00:02.8]} 44. fxg4 {[%clk 0:00:02.9]} 44...
Qd5+ {[%clk 0:00:03.3]} 45. f3 {[%clk 0:00:03.3]} 45... Qd2+ {[%clk 0:00:03.4]}
46. Kg3 {[%clk 0:00:03.8]} 46... Qe1+ {[%clk 0:00:03.8]} 47. Kh3 {[%clk
0:00:03.5]} 47... Qf2 {[%clk 0:00:03.4]} 48. h5 {[%clk 0:00:02.7]} 48... Qxf3+
{[%clk 0:00:03.9]} 49. Kh4 {[%clk 0:00:03.2]} 49... Qf2+ {[%clk 0:00:04.4]} 50.
Kh3 {[%clk 0:00:03.6]} 50... Qe3+ {[%clk 0:00:04.8]} 51. Kh4 {[%clk 0:00:03.9]}
51... Qe1+ {[%clk 0:00:05.1]} 52. Kh3 {[%clk 0:00:04.2]} 52... a5 {[%clk
0:00:05.4]} 53. h6 {[%clk 0:00:03]} 53... Qh1+ {[%clk 0:00:04.8]} 54. Kg3 {[%clk
0:00:03.4]} 54... Qg1+ {[%clk 0:00:05.2]} 55. Kh3 {[%clk 0:00:03.1]} 55... Qh1+
{[%clk 0:00:05.3]} 56. Kg3 {[%clk 0:00:03.6]} 56... a4 {[%clk 0:00:06]} 57. Rh8
{[%clk 0:00:02.9]} 57... Kf7 {[%clk 0:00:05.7]} 58. h7 {[%clk 0:00:02.4]} 58...
Qg1+ {[%clk 0:00:05.8]} 59. Kf3 {[%clk 0:00:02]} 59... Qf1+ {[%clk 0:00:06]} 60.
Kg3 {[%clk 0:00:02.3]} 60... Qe1+ {[%clk 0:00:06.2]} 61. Kf3 {[%clk 0:00:02.5]}
61... Qd1+ {[%clk 0:00:06.4]} 62. Kg3 {[%clk 0:00:03]} 62... Kg7 {[%clk
0:00:06.7]} 63. Ra8 {[%clk 0:00:02.4]} 63... Kxh7 {[%clk 0:00:06.7]} 64. Ra7+
{[%clk 0:00:02.6]} 64... Kg6 {[%clk 0:00:07]} 65. Ra5 {[%clk 0:00:02.2]} 65...
Qd3+ {[%clk 0:00:06.8]} 66. Kh4 {[%clk 0:00:02.4]} 66... Qd2 {[%clk 0:00:06.8]}
67. Rxa4 {[%clk 0:00:02.2]} 67... Qh2# {[%clk 0:00:06.9]} 0-1